fUSD/lending_fUSD_20260218
["ID","MTS","AMOUNT","RATE_DAILY","PERIOD"]
[405901371,1771413045982,-500.0,0.00013699,2]
[405901372,1771413045992,-162.44090576,0.00013699,2]
[405901373,1771413046003,-500.0,0.00013699,2]
[405901374,1771413046013,-500.0,0.00013699,2]
[405901375,1771413046022,-500.0,0.00013699,2]
[405901376,1771413046032,-500.0,0.00013699,2]
[405901378,1771413046041,-500.0,0.00013699,2]
[405901380,1771413046051,-160.58503845,0.00013699,2]
[405901382,1771413046060,-561.22608734,0.00013699,2]
[405901384,1771413046071,-500.61236308,0.00013699,2]
[405901385,1771413046080,-161.91543502,0.00013699,2]
[405901386,1771413046090,-500.0,0.00013699,2]
[405901387,1771413046099,-500.0,0.00013699,2]
[405901388,1771413046109,-500.0,0.00013699,2]
[405901389,1771413046119,-500.0,0.00013699,2]
[405901390,1771413046128,-523.76939094,0.00013699,2]
[405901391,1771413046137,-505.80737732,0.00013699,2]
[405901392,1771413046147,-160.58306572,0.00013699,2]
[405901393,1771413046156,-500.0,0.00013699,2]
[405901394,1771413046166,-501.28055995,0.00013699,2]
[405901395,1771413046175,-514.3981141,0.00013699,2]
[405901396,1771413046184,-157.98680662,0.00013699,2]
[405901397,1771413046193,-500.0,0.00013699,2]
[405901398,1771413046203,-500.0,0.00013699,2]
[405901399,1771413046213,-160.33154335,0.00013699,2]
[405901400,1771413046223,-500.0,0.00013699,2]
[405901401,1771413046232,-500.0,0.00013699,2]
[405901402,1771413046242,-616.51234447,0.00013699,2]
[405901403,1771413046251,-500.0,0.00013699,2]
[405901404,1771413046261,-500.0,0.00013699,2]
[405901405,1771413046270,-500.0,0.00013699,2]
[405901406,1771413046279,-500.0,0.00013699,2]
[405901407,1771413046288,-500.0,0.00013699,2]
[405901408,1771413046297,-500.0,0.00013699,2]
[405901409,1771413046307,-500.0,0.00013699,2]
[405901410,1771413046317,-500.0,0.00013699,2]
[405901411,1771413046326,-501.41908298,0.00013699,2]
[405901412,1771413046336,-500.0,0.00013699,2]
[405901413,1771413046345,-500.0,0.00013699,2]
[405901414,1771413046355,-310.22535934,0.00013699,2]
[405901415,1771413046365,-500.0,0.00013699,2]
[405901416,1771413046374,-162.00011726,0.00013699,2]
[405901417,1771413046384,-500.0,0.00013699,2]
[405901418,1771413046393,-160.59858326,0.00013699,2]
[405901419,1771413046403,-161.63276851,0.00013699,2]
[405901420,1771413046412,-500.0,0.00013699,2]
[405901421,1771413046422,-160.47798963,0.00013699,2]
[405901422,1771413046431,-161.06774125,0.00013699,2]
[405901423,1771413046441,-500.0,0.00013699,2]
[405901424,1771413046451,-500.0,0.00013699,2]
[405901425,1771413046460,-500.0,0.00013699,2]
[405901426,1771413046469,-500.0,0.00013699,2]
[405901427,1771413046479,-500.0,0.00013699,2]
[405901428,1771413046489,-500.0,0.00013699,2]
[405901429,1771413046499,-500.0,0.00013699,2]
[405901430,1771413046507,-500.0,0.00013699,2]
[405901431,1771413046516,-500.0,0.00013699,2]
[405901432,1771413046526,-285.30109483,0.00013699,2]
[405901433,1771413046535,-500.0,0.00013699,2]
[405901434,1771413046544,-569.93791735,0.00013699,2]
[405901435,1771413046554,-500.0,0.00013699,2]
[405901436,1771413046563,-165.26007382,0.00013699,2]
[405901437,1771413046573,-500.0,0.00013699,2]
[405901438,1771413046583,-501.53653248,0.00013699,2]
[405901439,1771413046592,-377.84784353,0.00013699,2]
[405901440,1771413046602,-500.0,0.00013699,2]
[405901441,1771413046612,-151.49356068,0.00013699,2]
[405901442,1771413046621,-22025.34,0.000137,2]
[405901443,1771413046630,-22025.34,0.000137,2]
[405901444,1771413046640,-618.68,0.000137,2]
[405901445,1771413046649,-618.68,0.000137,2]
[405901446,1771413046659,-618.68,0.000137,2]
[405901447,1771413046668,-618.68,0.000137,2]
[405901448,1771413046677,-618.68,0.000137,2]
[405901449,1771413046687,-333.11,0.00013706,2]
[405901450,1771413046696,-194.72792766,0.00013921,2]
[405901451,1771413046705,-233.51889341,0.00013921,2]
[405901452,1771413046715,-309.29654756,0.00013921,2]
[405901453,1771413046724,-1266.17,0.00013999,2]
[405901454,1771413046733,-1266.17,0.00013999,2]
[405901455,1771413046743,-1266.17,0.00013999,2]
[405901456,1771413046752,-1266.17,0.00013999,2]
[405901457,1771413046761,-1266.23,0.00013999,2]
[405901458,1771413046770,-500.0,0.00013999,2]
[405901459,1771413046779,-500.0,0.00013999,2]
[405901460,1771413046788,-500.0,0.00013999,2]
[405901461,1771413046797,-429.82,0.00013999,2]
[405901462,1771413046807,-1179.65,0.00013999,2]
[405901463,1771413046820,-1179.65,0.00013999,2]
[405901464,1771413046829,-1179.65,0.00013999,2]
[405901465,1771413046838,-1179.65,0.00013999,2]
[405901466,1771413046847,-1179.68764413,0.00013999,2]
[405901467,1771413046857,-976.2,0.00013999,2]
[405901468,1771413046866,-976.2,0.00013999,2]
[405901469,1771413046875,-976.2,0.00013999,2]
[405901470,1771413046884,-976.2,0.00013999,2]
[405901471,1771413046895,-976.2,0.00013999,2]
[405901472,1771413046904,-976.28011377,0.00013999,2]
[405901473,1771413046913,-200.0,0.00014,2]
[405901474,1771413046923,-1629.76441726,0.0001404,2]
[405901475,1771413046932,-666.0,0.00014049,2]
[405901476,1771413046941,-2000.0,0.0001405,2]
[405901477,1771413046950,-500.0,0.0001405,2]
[405901478,1771413046959,-3800.0,0.0001405,2]
[405901479,1771413046968,-810.0,0.0001405,2]
[405901480,1771413046978,-3800.0,0.0001405,2]
[405901481,1771413046987,-500.0,0.0001405,2]
[405901482,1771413046996,-1600.0,0.0001405,2]
[405901483,1771413047006,-2000.0,0.0001405,2]
[405901484,1771413047017,-3800.0,0.0001405,2]
[405901485,1771413047027,-1600.0,0.0001405,2]
[405901486,1771413047036,-2000.0,0.0001405,2]
[405901487,1771413047045,-1600.0,0.0001405,2]
[405901488,1771413047054,-3800.0,0.0001405,2]
[405901489,1771413047063,-2000.0,0.0001405,2]
[405901490,1771413047074,-3800.0,0.0001405,2]
[405901491,1771413047083,-1600.0,0.0001405,2]
[405901492,1771413047093,-2000.0,0.0001405,2]
[405901493,1771413047102,-3800.0,0.0001405,2]
[405901494,1771413047112,-1600.0,0.0001405,2]
[405901495,1771413047122,-2000.0,0.0001405,2]
[405901496,1771413047131,-3800.0,0.0001405,2]
[405901497,1771413047140,-1600.0,0.0001405,2]
[405901498,1771413047150,-2000.0,0.0001405,2]
[405901499,1771413047159,-173.61565487,0.0001405,2]
[405901500,1771413047168,-1600.0,0.0001405,2]
[405901501,1771413047177,-3800.0,0.0001405,2]
[405901502,1771413047186,-2000.0,0.0001405,2]
[405901503,1771413047196,-1600.0,0.0001405,2]
[405901504,1771413047205,-2000.0,0.0001405,2]
[405901505,1771413047215,-3800.0,0.0001405,2]
[405901506,1771413047224,-500.0,0.0001405,2]
[405901507,1771413047234,-1600.0,0.0001405,2]
[405901508,1771413047243,-3800.0,0.0001405,2]
[405901509,1771413047252,-2000.0,0.0001405,2]
[405901510,1771413047262,-322.36321151,0.0001405,2]
[405901511,1771413047272,-1600.0,0.0001405,2]
[405901512,1771413047282,-500.0,0.0001405,2]
[405901513,1771413047291,-3800.0,0.0001405,2]
[405901514,1771413047301,-2000.0,0.0001405,2]
[405901515,1771413047310,-746.51063578,0.0001405,2]
[405901516,1771413047320,-7500.0,0.0001405,2]
[405901517,1771413047330,-500.0,0.0001405,2]
[405901518,1771413047339,-389.61327066,0.0001405,2]
[405901519,1771413047349,-285.67392356,0.0001405,2]
[405901520,1771413047358,-1600.0,0.0001405,2]
[405901521,1771413047368,-2000.0,0.0001405,2]
[405901522,1771413047377,-3800.0,0.0001405,2]
[405901523,1771413047387,-500.0,0.0001405,2]
[405901524,1771413047397,-7500.0,0.0001405,2]
[405901525,1771413047407,-500.0,0.0001405,2]
[405901526,1771413047416,-1600.0,0.0001405,2]
[405901527,1771413047426,-2300.0,0.0001405,2]
[405901528,1771413047436,-2000.0,0.0001405,2]
[405901529,1771413047446,-500.0,0.0001405,2]
[405901530,1771413047455,-514.06442359,0.0001405,2]
[405901531,1771413047465,-3800.0,0.0001405,2]
[405901532,1771413047475,-7500.0,0.0001405,2]
[405901533,1771413047484,-500.0,0.0001405,2]
[405901534,1771413047494,-2300.0,0.0001405,2]
[405901535,1771413047504,-1600.0,0.0001405,2]
[405901536,1771413047514,-2000.0,0.0001405,2]
[405901537,1771413047524,-7500.0,0.0001405,2]
[405901538,1771413047533,-3800.0,0.0001405,2]
[405901539,1771413047544,-500.0,0.0001405,2]
[405901540,1771413047553,-2300.0,0.0001405,2]
[405901541,1771413047563,-1600.0,0.0001405,2]
[405901542,1771413047573,-7500.0,0.0001405,2]
[405901543,1771413047583,-3800.0,0.0001405,2]
[405901544,1771413047592,-500.0,0.0001405,2]
[405901545,1771413047601,-1600.0,0.0001405,2]
[405901546,1771413047611,-7500.0,0.0001405,2]
[405901547,1771413047620,-500.0,0.0001405,2]
[405901548,1771413047630,-2300.0,0.0001405,2]
[405901549,1771413047640,-7500.0,0.0001405,2]
[405901550,1771413047650,-2300.0,0.0001405,2]
[405901551,1771413047660,-500.0,0.0001405,2]
[405901552,1771413047669,-500.0,0.0001405,2]
[405901553,1771413047679,-2300.0,0.0001405,2]
[405901554,1771413047688,-7500.0,0.0001405,2]
[405901555,1771413047698,-500.0,0.0001405,2]
[405901556,1771413047707,-500.0,0.0001405,2]
[405901557,1771413047716,-483.72863295,0.0001405,2]
[405901558,1771413047726,-2300.0,0.0001405,2]
[405901559,1771413047736,-7500.0,0.0001405,2]
[405901560,1771413047745,-839.81835804,0.0001405,2]
[405901561,1771413047755,-765.60339842,0.0001405,2]
[405901562,1771413047765,-1500.0,0.0001405,2]
[405901563,1771413047776,-500.0,0.0001405,2]
[405901564,1771413047786,-2300.0,0.0001405,2]
[405901565,1771413047796,-7500.0,0.0001405,2]
[405901566,1771413047806,-700.0,0.0001405,2]
[405901567,1771413047821,-1500.0,0.0001405,2]
[405901568,1771413047830,-500.0,0.0001405,2]
[405901569,1771413047840,-2300.0,0.0001405,2]
[405901570,1771413047850,-7500.0,0.0001405,2]
[405901571,1771413047861,-700.0,0.0001405,2]
[405901572,1771413047871,-1500.0,0.0001405,2]
[405901573,1771413047883,-2300.0,0.0001405,2]
[405901574,1771413047892,-898.13786328,0.0001405,2]
[405901575,1771413047902,-700.0,0.0001405,2]
[405901576,1771413047911,-7500.0,0.0001405,2]
[405901577,1771413047921,-1500.0,0.0001405,2]
[405901578,1771413047931,-700.0,0.0001405,2]
[405901579,1771413047940,-2300.0,0.0001405,2]
[405901580,1771413047950,-7500.0,0.0001405,2]
[405901581,1771413047959,-1500.0,0.0001405,2]
[405901582,1771413047969,-202.72821533,0.0001405,2]
[405901583,1771413047978,-7500.0,0.0001405,2]
[405901584,1771413047988,-1500.0,0.0001405,2]
[405901585,1771413047997,-2300.0,0.0001405,2]
[405901586,1771413048007,-700.0,0.0001405,2]
[405901587,1771413048016,-7500.0,0.0001405,2]
[405901588,1771413048026,-1500.0,0.0001405,2]
[405901589,1771413048035,-2300.0,0.0001405,2]
[405901590,1771413048045,-500.0,0.0001405,2]
[405901591,1771413048054,-700.0,0.0001405,2]
[405901592,1771413048064,-500.0,0.0001405,2]
[405901593,1771413048287,-1500.0,0.0001405,2]
[405901594,1771413048297,-2300.0,0.0001405,2]
[405901595,1771413048307,-500.0,0.0001405,2]
[405901596,1771413048318,-600.0,0.0001405,2]
[405901597,1771413048328,-700.0,0.0001405,2]
[405901598,1771413048337,-500.0,0.0001405,2]
[405901599,1771413048346,-557.35975036,0.0001405,2]
[405901600,1771413048355,-700.0,0.0001405,2]
[405901601,1771413048365,-1500.0,0.0001405,2]
[405901602,1771413048375,-1000.0,0.0001405,2]
[405901603,1771413048384,-600.0,0.0001405,2]
[405901604,1771413048393,-700.0,0.0001405,2]
[405901605,1771413048403,-500.0,0.0001405,2]
[405901606,1771413048412,-500.0,0.0001405,2]
[405901607,1771413048421,-700.0,0.0001405,2]
[405901608,1771413048430,-1500.0,0.0001405,2]
[405901609,1771413048440,-500.0,0.0001405,2]
[405901610,1771413048449,-600.0,0.0001405,2]
[405901611,1771413048459,-700.0,0.0001405,2]
[405901612,1771413048468,-1000.0,0.0001405,2]
[405901613,1771413048478,-500.0,0.0001405,2]
[405901614,1771413048487,-187.43513762,0.0001405,2]
[405901615,1771413048497,-500.0,0.0001405,2]
[405901616,1771413048506,-700.0,0.0001405,2]
[405901617,1771413048516,-1500.0,0.0001405,2]
[405901618,1771413048525,-600.0,0.0001405,2]
[405901619,1771413048535,-1000.0,0.0001405,2]
[405901620,1771413048545,-500.0,0.0001405,2]
[405901621,1771413048554,-700.0,0.0001405,2]
[405901622,1771413048564,-500.0,0.0001405,2]
[405901623,1771413048575,-700.0,0.0001405,2]
[405901624,1771413048584,-1500.0,0.0001405,2]
[405901625,1771413048594,-600.0,0.0001405,2]
[405901626,1771413048603,-1000.0,0.0001405,2]
[405901627,1771413048612,-700.0,0.0001405,2]
[405901628,1771413048621,-500.0,0.0001405,2]
[405901629,1771413048631,-1500.0,0.0001405,2]
[405901630,1771413048640,-700.0,0.0001405,2]
[405901631,1771413048650,-1000.0,0.0001405,2]
[405901632,1771413048661,-700.0,0.0001405,2]
[405901633,1771413048674,-500.0,0.0001405,2]
[405901634,1771413048685,-1500.0,0.0001405,2]
[405901635,1771413048695,-700.0,0.0001405,2]
[405901636,1771413048704,-700.0,0.0001405,2]
[405901637,1771413048715,-1000.0,0.0001405,2]
[405901638,1771413048727,-700.0,0.0001405,2]
[405901639,1771413048737,-1000.0,0.0001405,2]
[405901640,1771413048746,-467.20117357,0.0001405,2]
[405901641,1771413048757,-500.0,0.0001405,2]
[405901642,1771413048767,-700.0,0.0001405,2]
[405901643,1771413048778,-1000.0,0.0001405,2]
[405901644,1771413048789,-500.0,0.0001405,2]
[405901645,1771413048799,-700.0,0.0001405,2]
[405901646,1771413048809,-1000.0,0.0001405,2]
[405901647,1771413048823,-500.0,0.0001405,2]
[405901648,1771413048833,-700.0,0.0001405,2]
[405901649,1771413048843,-1000.0,0.0001405,2]
[405901650,1771413048853,-500.0,0.0001405,2]
[405901651,1771413048864,-700.0,0.0001405,2]
[405901652,1771413048874,-1000.0,0.0001405,2]
[405901653,1771413048888,-1000.0,0.0001405,2]
[405901654,1771413048898,-700.0,0.0001405,2]
[405901655,1771413048907,-1000.0,0.0001405,2]
[405901656,1771413048916,-700.0,0.0001405,2]
[405901657,1771413048925,-1000.0,0.0001405,2]
[405901658,1771413048935,-700.0,0.0001405,2]
[405901659,1771413048944,-600.0,0.0001405,2]
[405901660,1771413048953,-600.0,0.0001405,2]
[405901661,1771413048963,-600.0,0.0001405,2]
[405901662,1771413048972,-600.0,0.0001405,2]
[405901663,1771413048981,-600.0,0.0001405,2]
[405901664,1771413048990,-600.0,0.0001405,2]
[405901665,1771413048999,-600.0,0.0001405,2]
[405901666,1771413049008,-600.0,0.0001405,2]
[405901667,1771413049018,-500.0,0.0001405,2]
[405901668,1771413049028,-500.0,0.0001405,2]
[405901669,1771413049039,-225.89507098,0.0001405,2]
[405901670,1771413049048,-500.0,0.0001405,2]
[405901671,1771413049058,-500.0,0.0001405,2]
[405901672,1771413049068,-500.0,0.0001405,2]
[405901673,1771413049077,-500.0,0.0001405,2]
[405901674,1771413049087,-500.0,0.0001405,2]
[405901675,1771413049096,-500.0,0.0001405,2]
[405901676,1771413049106,-500.0,0.0001405,2]
[405901677,1771413049116,-500.0,0.0001405,2]
[405901678,1771413049127,-500.0,0.0001405,2]
[405901679,1771413049137,-500.0,0.0001405,2]
[405901680,1771413049147,-500.0,0.0001405,2]
[405901681,1771413049159,-500.0,0.0001405,2]
[405901682,1771413049168,-500.0,0.0001405,2]
[405901683,1771413049177,-500.0,0.0001405,2]
[405901684,1771413049186,-500.0,0.0001405,2]
[405901685,1771413049196,-500.0,0.0001405,2]
[405901686,1771413049206,-500.0,0.0001405,2]
[405901687,1771413049216,-500.0,0.0001405,2]
[405901688,1771413049226,-392.76826941,0.0001405,2]
[405901689,1771413049238,-173.41455475,0.0001405,2]
[405901690,1771413049248,-168.70352471,0.0001405,2]
[405901691,1771413049259,-1400.0,0.0001405,2]
[405901692,1771413049268,-1400.0,0.0001405,2]
[405901693,1771413049278,-1400.0,0.0001405,2]
[405901694,1771413049288,-223.32304254,0.0001405,2]
[405901695,1771413049299,-1400.0,0.0001405,2]
[405901696,1771413049310,-1400.0,0.0001405,2]
[405901697,1771413049321,-1400.0,0.0001405,2]
[405901698,1771413049330,-1400.0,0.0001405,2]
[405901699,1771413049339,-1400.0,0.0001405,2]
[405901700,1771413049348,-1400.0,0.0001405,2]
[405901701,1771413049359,-1400.0,0.0001405,2]
[405901702,1771413049370,-1400.0,0.0001405,2]
[405901703,1771413049379,-1400.0,0.0001405,2]
[405901704,1771413049389,-1400.0,0.0001405,2]
[405901705,1771413049398,-1400.0,0.0001405,2]
[405901706,1771413049408,-1003.02217796,0.00014247,2]
[405901707,1771413049417,-1000.0,0.00014247,2]
[405901708,1771413049428,-1000.0,0.00014247,2]
[405901709,1771413049438,-1000.0,0.00014247,2]
[405901710,1771413049448,-1000.0,0.00014247,2]
[405901711,1771413049457,-1000.0,0.00014247,2]
[405901712,1771413049466,-1067.47328951,0.00014247,2]
[405901713,1771413049477,-1000.0,0.00014247,2]
[405901714,1771413049487,-1000.0,0.00014247,2]
[405901715,1771413049496,-1000.0,0.00014247,2]
[405901716,1771413049506,-505.28465419,0.00014247,2]
[405901717,1771413049515,-1000.0,0.00014247,2]
[405901718,1771413049524,-1000.0,0.00014247,2]
[405901719,1771413049533,-1000.0,0.00014247,2]
[405901720,1771413049543,-1000.0,0.00014247,2]
[405901721,1771413049552,-1000.0,0.00014247,2]
[405901722,1771413049561,-1000.0,0.00014247,2]
[405901723,1771413049572,-1000.0,0.00014247,2]
[405901724,1771413049581,-1000.0,0.00014247,2]
[405901725,1771413049590,-1000.0,0.00014247,2]
[405901726,1771413049600,-336.6867508,0.00014247,2]
[405901727,1771413049609,-1000.0,0.00014247,2]
[405901728,1771413049618,-1000.0,0.00014247,2]
[405901729,1771413049627,-1000.0,0.00014247,2]
[405901730,1771413049636,-501.83349553,0.00014247,2]
[405901731,1771413049647,-1000.0,0.00014247,2]
[405901732,1771413049656,-1000.0,0.00014247,2]
[405901733,1771413049667,-1000.0,0.00014247,2]
[405901734,1771413049676,-1000.0,0.00014247,2]
[405901735,1771413049687,-1000.0,0.00014247,2]
[405901736,1771413049696,-1000.0,0.00014247,2]
[405901737,1771413049706,-1000.0,0.00014247,2]
[405901738,1771413049716,-1000.0,0.00014247,2]
[405901739,1771413049727,-1000.0,0.00014247,2]
[405901740,1771413049736,-1000.0,0.00014247,2]
[405901741,1771413049746,-1001.64879923,0.00014247,2]
[405901742,1771413049758,-1000.0,0.00014247,2]
[405901743,1771413049769,-1003.65271303,0.00014247,2]
[405901744,1771413049779,-561.93408671,0.00014247,2]
[405901745,1771413049789,-1000.0,0.00014247,2]
[405901746,1771413049799,-1000.0,0.00014247,2]
[405901747,1771413049810,-1000.0,0.00014247,2]
[405901748,1771413049824,-1000.0,0.00014247,2]
[405901749,1771413049833,-1000.0,0.00014247,2]
[405901750,1771413049842,-1000.0,0.00014247,2]
[405901751,1771413049853,-1000.0,0.00014247,2]
[405901752,1771413049863,-552.89419638,0.00014247,2]
[405901753,1771413049873,-1105.0,0.00014286,2]
[405901754,1771413049883,-3861.15,0.00014384,2]
[405901755,1771413049894,-201.93286099,0.00014469,2]
[405901756,1771413049905,-242.15909246,0.00014469,2]
[405901757,1771413049915,-320.74051982,0.00014469,2]
[405901758,1771413049926,-265.07,0.00014483,2]
[405901759,1771413049936,-1955.0,0.00014486,2]
[405901760,1771413049947,-500.0,0.00014795,2]
[405901761,1771413049958,-1500.0,0.00014795,2]
[405901762,1771413049968,-1512.08661125,0.00014795,2]
[405901763,1771413049978,-1500.0,0.00014795,2]
[405901764,1771413049987,-500.0,0.00014795,2]
[405901765,1771413049998,-1461.91291147,0.00014795,2]
[405901766,1771413050009,-477.33821748,0.00014795,2]
[405901767,1771413050021,-1456.56316713,0.00014795,2]
[405901768,1771413050031,-534.53110943,0.00014795,2]
[405901769,1771413050042,-1500.0,0.00014795,2]
[405901770,1771413050053,-1037.4625703,0.00014795,2]
[405901771,1771413050063,-1500.0,0.00014795,2]
[405901772,1771413050073,-1500.0,0.00014795,2]
[405901773,1771413050082,-1500.0,0.00014795,2]
[405901774,1771413050092,-1602.36130291,0.00014795,2]
[405901775,1771413050102,-152.0,0.00014892,3]
[405901776,1771413050111,-150.0,0.00014912,2]
[405901777,1771413050121,-150.0,0.00014912,2]
[405901778,1771413050132,-150.0,0.00014912,2]
[405901779,1771413050141,-150.0,0.00014912,2]
[405901780,1771413050151,-150.0,0.00014912,2]
[405901781,1771413050162,-150.0,0.00014912,2]
[405901782,1771413050172,-150.0,0.00014912,2]
[405901783,1771413050181,-150.0,0.00014912,2]
[405901784,1771413050191,-150.0,0.00014912,2]
[405901785,1771413050201,-150.0,0.00014912,2]
[405901786,1771413050210,-617.0,0.00014912,2]
[405901787,1771413050220,-1164.0,0.00014912,2]
[405901788,1771413050229,-1338.0,0.00014912,2]
[405901789,1771413050238,-1275.0,0.00014912,2]
[405901790,1771413050248,-150.0,0.00014912,2]
[405901791,1771413050257,-1209.0,0.00014912,2]
[405901792,1771413050268,-5973.0,0.00014912,2]
[405901793,1771413050279,-2452.0,0.00014912,2]
[405901794,1771413050289,-152.0,0.00014943,3]
[405901795,1771413050299,-250.0,0.00015,2]
[405901796,1771413050309,-174.61919141,0.00015015,2]
[405901797,1771413050319,-747.8093786,0.00015016,2]
[405901798,1771413050329,-209.40437684,0.00015017,2]
[405901799,1771413050338,-251.11897888,0.00015017,2]
[405901800,1771413050348,-332.60791905,0.00015017,2]
[405901801,1771413050357,-3861.15,0.00015068,2]
[405901802,1771413050367,-900.0,0.00015068,2]
[405901803,1771413050377,-2000.0,0.00015342,2]
[405901804,1771413050386,-2000.0,0.00015342,2]
[405901805,1771413050395,-1191.23979414,0.00015342,2]
[405901806,1771413050404,-1721.59968024,0.00015342,2]
[405901807,1771413050413,-2000.0,0.00015342,2]
[405901808,1771413050422,-2000.0,0.00015342,2]
[405901809,1771413050431,-333.11,0.00015512,2]
[405901810,1771413050441,-217.15233878,0.00015565,2]
[405901811,1771413050450,-260.4103811,0.00015565,2]
[405901812,1771413050459,-344.91441206,0.00015565,2]
[405901813,1771413050468,-482.75960727,0.00015632,2]
[405901814,1771413050477,-552.47642339,0.00015683,7]
[405901815,1771413050486,-3861.15,0.00015753,2]
[405901816,1771413050495,-279.93866255,0.0001589,2]
[405901817,1771413050504,-801.75028282,0.0001589,2]
[405901818,1771413050513,-2500.0,0.0001589,2]
[405901819,1771413050523,-1534.2126926,0.0001589,2]
[405901820,1771413050532,-200.0,0.00016,2]
[405901821,1771413050541,-2000.0,0.00016,2]
[405901822,1771413050550,-482.75960727,0.00016023,2]
[405901823,1771413050559,-575.0,0.0001605,2]
[405901824,1771413050568,-1400.0,0.00016082,2]
[405901825,1771413050577,-225.18697532,0.00016113,2]
[405901826,1771413050586,-270.0455652,0.00016113,2]
[405901827,1771413050595,-357.6762453,0.00016113,2]
[405901828,1771413050605,-1000.0,0.00016231,2]
[405901829,1771413050614,-500.0,0.00016356,2]
[405901830,1771413050623,-500.0,0.00016356,2]
[405901831,1771413050634,-37237.52246235,0.0001636,2]
[405901832,1771413050648,-666.0,0.00016379,2]
[405901833,1771413050659,-47069.0,0.0001638,2]
[405901834,1771413050670,-181.08010149,0.00016384,2]
[405901835,1771413050680,-842.0,0.000164,2]
[405901836,1771413050689,-2836.0,0.000164,2]
[405901837,1771413050698,-160.0,0.000164,2]
[405901838,1771413050708,-2836.0,0.000164,2]
[405901839,1771413050717,-2836.0,0.000164,2]
[405901840,1771413050727,-2836.0,0.000164,2]
[405901841,1771413050737,-482.75960727,0.00016413,2]
[405901842,1771413050746,-3207.6,0.00016438,2]
[405901843,1771413050755,-569.98,0.00016438,2]
[405901844,1771413050765,-3861.15,0.00016438,2]
[405901845,1771413050774,-841.0,0.00016438,2]
[405901846,1771413050783,-900.0,0.00016438,2]
[405901847,1771413050792,-3000.0,0.00016438,2]
[405901848,1771413050801,-2000.0,0.000165,2]
[405901849,1771413050812,-233.51889341,0.00016661,2]
[405901850,1771413050826,-280.03725112,0.00016661,2]
[405901851,1771413050836,-370.91026638,0.00016661,2]
[405901852,1771413050845,-1000.0,0.00016665,2]
[405901853,1771413050856,-575.0,0.00016696,2]
[405901854,1771413050865,-152.0,0.00016707,3]
[405901855,1771413050874,-3207.6,0.00016712,2]
[405901856,1771413050884,-841.0,0.00016712,2]
[405901857,1771413050893,-842.0,0.0001672,2]
[405901858,1771413050903,-160.0,0.0001672,2]
[405901859,1771413050913,-1000.0,0.00016724,2]
[405901860,1771413050923,-1000.0,0.00016735,2]
[405901861,1771413050932,-1000.0,0.0001676,2]
[405901862,1771413050942,-482.75960727,0.00016804,2]
[405901863,1771413050951,-1000.0,0.00016836,2]
[405901864,1771413050960,-996.49958588,0.00016863,2]
[405901865,1771413050970,-1000.0,0.00016915,2]
[405901866,1771413050979,-300.0,0.00016919,2]
[405901867,1771413050989,-300.0,0.00016919,2]
[405901868,1771413051000,-300.0,0.00016919,2]
[405901869,1771413051010,-47069.0,0.0001692,2]
[405901870,1771413051020,-1000.0,0.0001692,2]
[405901871,1771413051031,-1000.0,0.00016974,2]
[405901872,1771413051040,-200.0,0.00016983,2]
[405901873,1771413051049,-3207.6,0.00016986,2]
[405901874,1771413051058,-841.0,0.00016986,2]